fUST/lending_fUST_20250221
["ID","MTS","AMOUNT","RATE_DAILY","PERIOD"]
[353851944,1740093054922,-500.0,0.00014767,2]
[353851945,1740093054931,-578.16,0.00014767,2]
[353851946,1740093054941,-657.69,0.00014767,2]
[353851947,1740093054951,-1074.3,0.00014767,2]
[353851948,1740093054960,-848.28,0.00014767,2]
[353851949,1740093054969,-2080.26,0.00014767,2]
[353851950,1740093054978,-619.59,0.00014767,2]
[353851951,1740093054988,-580.29,0.00014767,2]
[353851952,1740093054998,-546.21,0.00014767,2]
[353851953,1740093055007,-500.0,0.00014767,2]
[353851954,1740093055016,-2356.11,0.00014767,2]
[353851955,1740093055026,-2038.12,0.00014767,2]
[353851956,1740093055035,-749.35,0.00014767,2]
[353851957,1740093055045,-5827.26,0.00014767,2]
[353851958,1740093055054,-2382.51,0.00014767,2]
[353851959,1740093055134,-1858.28,0.00014767,2]
[353851960,1740093055144,-894.52,0.00014767,2]
[353851961,1740093055154,-18344.11,0.00014767,2]
[353851962,1740093055164,-500.0,0.00014767,2]
[353851963,1740093055174,-500.0,0.00014767,2]
[353851964,1740093055184,-2193.0,0.00014767,2]
[353851965,1740093055194,-588.51,0.00014767,2]
[353851966,1740093055204,-500.0,0.00014767,2]
[353851967,1740093055214,-500.0,0.00014767,2]
[353851968,1740093055224,-2360.06,0.00014767,2]
[353851969,1740093055233,-547.18,0.00014767,2]
[353851970,1740093055243,-500.0,0.00014767,2]
[353851971,1740093055253,-3121.6,0.00014767,2]
[353851972,1740093055263,-500.0,0.00014767,2]
[353851973,1740093055272,-500.0,0.00014767,2]
[353851974,1740093055282,-8484.74,0.00014767,2]
[353851975,1740093055295,-11866.1117743,0.0001477,2]
[353851976,1740093055305,-151.0,0.0001477,2]
[353851977,1740093055315,-151.0,0.0001477,2]
[353851978,1740093055324,-224.336594,0.0001477,2]
[353851979,1740093055335,-224.336594,0.0001477,2]
[353851980,1740093055345,-151.0,0.0001477,2]
[353851981,1740093055355,-150.0,0.000148,30]
[353851982,1740093055364,-150.0,0.000148,2]
[353851983,1740093055375,-152.137845,0.000148,2]
[353851984,1740093055385,-151.0,0.000148,2]
[353851985,1740093055395,-151.0,0.000148,2]
[353851986,1740093055406,-151.0,0.000148,2]
[353851987,1740093055416,-192.8,0.000148,2]
[353851988,1740093055425,-192.8,0.000148,2]
[353851989,1740093055435,-605.42324317,0.00014802,2]
[353851990,1740093055444,-67871.03779173,0.0001484,2]
[353851991,1740093055454,-160.0,0.00014845,5]
[353851992,1740093055463,-160.0,0.00014845,5]
[353851993,1740093055473,-639.57,0.00014849,2]
[353851994,1740093055483,-500.0,0.00014849,2]
[353851995,1740093055493,-500.0,0.00014849,2]
[353851996,1740093055503,-500.0,0.00014849,2]
[353851997,1740093055512,-1646.56,0.00014849,2]
[353851998,1740093055521,-768.64,0.00014849,2]
[353851999,1740093055531,-500.0,0.00014849,2]
[353852000,1740093055541,-985.22,0.00014849,2]
[353852001,1740093055551,-650.61,0.00014849,2]
[353852002,1740093055560,-636.46,0.00014849,2]
[353852003,1740093055569,-739.49,0.00014849,2]
[353852004,1740093055579,-1248.4,0.00014849,2]
[353852005,1740093055588,-697.87,0.00014849,2]
[353852006,1740093055598,-850.25,0.00014849,2]
[353852007,1740093055608,-712.79,0.00014849,2]
[353852008,1740093055617,-1377.81,0.00014849,2]
[353852009,1740093055627,-688.56,0.00014849,2]
[353852010,1740093055636,-500.0,0.00014849,2]
[353852011,1740093055645,-608.68,0.00014849,2]
[353852012,1740093055655,-1320.59,0.00014849,2]
[353852013,1740093055665,-976.22,0.00014849,2]
[353852014,1740093055675,-581.84,0.00014849,2]
[353852015,1740093055684,-862.29,0.00014849,2]
[353852016,1740093055693,-637.5,0.00014849,2]
[353852017,1740093055703,-500.0,0.00014849,2]
[353852018,1740093055713,-500.0,0.00014849,2]
[353852019,1740093055722,-152.0,0.00014849,2]
[353852020,1740093055731,-515.91,0.00014849,2]
[353852021,1740093055740,-500.0,0.00014849,2]
[353852022,1740093055750,-3733.3,0.00014849,2]
[353852023,1740093055760,-500.0,0.00014849,2]
[353852024,1740093055769,-1229.23,0.00014849,2]
[353852025,1740093055779,-15222.34,0.00014849,2]
[353852026,1740093055788,-500.0,0.00014849,2]
[353852027,1740093055798,-858.67,0.00014849,2]
[353852028,1740093055807,-1267.47,0.00014849,2]
[353852029,1740093055817,-2550.67,0.00014849,2]
[353852030,1740093055827,-41028.88,0.00014849,2]
[353852031,1740093055837,-1610.29,0.00014849,2]
[353852032,1740093055847,-646.42,0.00014849,2]
[353852033,1740093055856,-1919.21,0.00014849,2]
[353852034,1740093055866,-3453.62,0.00014849,2]
[353852035,1740093055875,-1399.21,0.00014849,2]
[353852036,1740093055885,-1299.64,0.00014849,2]
[353852037,1740093055895,-6813.62,0.00014849,2]
[353852038,1740093055906,-520.1,0.00014849,2]
[353852039,1740093055917,-500.0,0.00014849,2]
[353852040,1740093055927,-3852.84,0.00014849,2]
[353852041,1740093055937,-500.0,0.00014849,2]
[353852042,1740093055947,-949.14,0.00014849,2]
[353852043,1740093055957,-2082.79,0.00014849,2]
[353852044,1740093055967,-641.57,0.00014849,2]
[353852045,1740093055976,-500.0,0.00014849,2]
[353852046,1740093055985,-3621.04,0.00014849,2]
[353852047,1740093055995,-1297.19,0.00014849,2]
[353852048,1740093056005,-500.0,0.00014849,2]
[353852049,1740093056014,-578.16,0.00014849,2]
[353852050,1740093056024,-657.69,0.00014849,2]
[353852051,1740093056034,-1074.3,0.00014849,2]
[353852052,1740093056044,-848.28,0.00014849,2]
[353852053,1740093056055,-2080.26,0.00014849,2]
[353852054,1740093056064,-619.59,0.00014849,2]
[353852055,1740093056074,-546.21,0.00014849,2]
[353852056,1740093056084,-580.29,0.00014849,2]
[353852057,1740093056094,-500.0,0.00014849,2]
[353852058,1740093056103,-2356.11,0.00014849,2]
[353852059,1740093056113,-2038.12,0.00014849,2]
[353852060,1740093056123,-749.35,0.00014849,2]
[353852061,1740093056133,-5827.26,0.00014849,2]
[353852062,1740093056143,-2382.51,0.00014849,2]
[353852063,1740093056153,-1858.28,0.00014849,2]
[353852064,1740093056162,-894.52,0.00014849,2]
[353852065,1740093056172,-18344.11,0.00014849,2]
[353852066,1740093056183,-500.0,0.00014849,2]
[353852067,1740093056192,-500.0,0.00014849,2]
[353852068,1740093056203,-2193.0,0.00014849,2]
[353852069,1740093056213,-588.51,0.00014849,2]
[353852070,1740093056223,-500.0,0.00014849,2]
[353852071,1740093056233,-500.0,0.00014849,2]
[353852072,1740093056243,-547.18,0.00014849,2]
[353852073,1740093056253,-2360.06,0.00014849,2]
[353852074,1740093056263,-500.0,0.00014849,2]
[353852075,1740093056272,-151.0,0.00014849,2]
[353852076,1740093056283,-3121.6,0.00014849,2]
[353852077,1740093056296,-500.0,0.00014849,2]
[353852078,1740093056306,-500.0,0.00014849,2]
[353852079,1740093056316,-8484.74,0.00014849,2]
[353852080,1740093056325,-22624.05414412,0.0001485,2]
[353852081,1740093056337,-465.00518332,0.00014856,2]
[353852082,1740093056346,-150.33,0.00014876,2]
[353852083,1740093056356,-500.0,0.00014876,2]
[353852084,1740093056366,-500.0,0.00014876,2]
[353852085,1740093056375,-299.53151707,0.00014876,2]
[353852086,1740093056386,-299.59735996,0.00014876,2]
[353852087,1740093056396,-215.92113556,0.00014876,2]
[353852088,1740093056407,-500.0,0.00014876,2]
[353852089,1740093056416,-500.0,0.00014876,2]
[353852090,1740093056505,-217.74891801,0.00014876,2]
[353852091,1740093056515,-846.0,0.00014876,2]
[353852092,1740093056524,-548.0,0.00014876,2]
[353852093,1740093056534,-500.0,0.00014876,2]
[353852094,1740093056544,-500.0,0.00014876,2]
[353852095,1740093056553,-2000.0,0.000149,2]
[353852096,1740093056562,-160.0,0.000149,5]
[353852097,1740093056571,-196.012323,0.000149,2]
[353852098,1740093056581,-151.0,0.000149,2]
[353852099,1740093056590,-151.0,0.000149,2]
[353852100,1740093056600,-330807.46314224,0.000149,2]
[353852109,1740094109157,1064.15054927,0.0001804,90]
[353852111,1740094203595,309.10798,9.041e-05,2]
[353852151,1740094232265,-869.29,0.00010959,2]
[353852152,1740094232275,-173.85,0.00010959,2]
[353852153,1740094232284,-4583.98606336,0.000135,2]
[353852154,1740094232295,-400.0,0.000135,2]
[353852155,1740094232325,-286.73075199,0.000135,2]
[353852199,1740094238314,-17289.82284884,0.000135,2]
[353852201,1740094238324,-747.54553784,0.00013515,2]
[353852203,1740094238333,-194.77205555,0.00013598,2]
[353852205,1740094238342,-287.6484584,0.00013598,2]
[353852206,1740094238352,-194.77205553,0.00013599,2]
[353852208,1740094238363,-194.77205553,0.00013599,2]
[353852210,1740094238373,-500.0,0.00013673,2]
[353852211,1740094238382,-500.0,0.00013673,2]
[353852212,1740094238391,-500.0,0.00013673,2]
[353852213,1740094238401,-500.0,0.00013673,2]
[353852214,1740094238410,-500.0,0.00013673,2]
[353852215,1740094238419,-3000.0,0.0001368,2]
[353852216,1740094238429,-181.2,0.0001369,2]
[353852217,1740094238439,-500.0,0.00013697,2]
[353852218,1740094238448,-284.60810812,0.00013697,2]
[353852219,1740094238457,-500.0,0.00013697,2]
[353852220,1740094238467,-500.0,0.00013697,2]
[353852221,1740094238476,-500.0,0.00013697,2]
[353852222,1740094238486,-500.0,0.00013697,2]
[353852223,1740094238495,-500.0,0.00013697,2]
[353852224,1740094238504,-500.0,0.00013697,2]
[353852225,1740094238514,-500.0,0.00013697,2]
[353852226,1740094238524,-184.37979455,0.00013697,2]
[353852227,1740094238533,-500.0,0.00013697,2]
[353852228,1740094238543,-500.0,0.00013697,2]
[353852229,1740094238553,-385.66238557,0.00013697,2]
[353852230,1740094238563,-402.44209351,0.00013698,2]
[353852231,1740094238572,-500.0,0.00013698,2]
[353852232,1740094238582,-500.0,0.00013698,2]
[353852233,1740094238591,-500.0,0.00013698,2]
[353852234,1740094238601,-500.0,0.00013698,2]
[353852235,1740094238610,-500.0,0.00013698,2]
[353852236,1740094238621,-500.0,0.00013698,2]
[353852237,1740094238630,-500.0,0.00013698,2]
[353852238,1740094238640,-500.0,0.00013698,2]
[353852239,1740094238650,-500.0,0.00013698,2]
[353852240,1740094238659,-500.0,0.00013698,2]
[353852241,1740094238672,-500.0,0.00013698,2]
[353852242,1740094238681,-500.0,0.00013698,2]
[353852243,1740094238691,-500.0,0.00013698,2]
[353852244,1740094238701,-621.58,0.00013698,2]
[353852245,1740094238711,-500.0,0.00013698,2]
[353852246,1740094238722,-780.25,0.00013698,2]
[353852247,1740094238732,-861.13,0.00013698,2]
[353852248,1740094238741,-500.0,0.00013698,2]
[353852249,1740094238752,-500.0,0.00013698,2]
[353852250,1740094238761,-500.0,0.00013698,2]
[353852251,1740094238771,-500.0,0.00013698,2]
[353852252,1740094238780,-500.0,0.00013698,2]
[353852253,1740094238790,-500.0,0.00013698,2]
[353852254,1740094238799,-500.0,0.00013698,2]
[353852255,1740094238808,-566.83,0.00013698,2]
[353852256,1740094238818,-500.0,0.00013698,2]
[353852257,1740094238827,-500.0,0.00013698,2]
[353852258,1740094238837,-500.0,0.00013698,2]
[353852259,1740094238847,-880.39,0.00013698,2]
[353852260,1740094238856,-500.0,0.00013698,2]
[353852261,1740094238866,-650.81,0.00013698,2]
[353852262,1740094238875,-500.0,0.00013698,2]
[353852263,1740094238885,-500.0,0.00013698,2]
[353852264,1740094238894,-646.72,0.00013698,2]
[353852265,1740094238904,-500.0,0.00013698,2]
[353852266,1740094238913,-500.0,0.00013698,2]
[353852267,1740094238922,-500.0,0.00013698,2]
[353852268,1740094238931,-500.0,0.00013698,2]
[353852269,1740094238941,-500.0,0.00013698,2]
[353852270,1740094238950,-500.0,0.00013698,2]
[353852271,1740094238959,-500.0,0.00013698,2]
[353852272,1740094238969,-500.0,0.00013698,2]
[353852273,1740094238978,-752.93,0.00013698,2]
[353852274,1740094238987,-500.0,0.00013698,2]
[353852275,1740094238997,-500.0,0.00013698,2]
[353852276,1740094239006,-950.61,0.00013698,2]
[353852277,1740094239015,-500.0,0.00013698,2]
[353852278,1740094239026,-2211.13,0.00013698,2]
[353852279,1740094239035,-921.92,0.00013698,2]
[353852280,1740094239044,-1000.0,0.00013698,2]
[353852281,1740094239054,-500.0,0.00013698,2]
[353852282,1740094239063,-1471.46,0.00013698,2]
[353852283,1740094239072,-500.0,0.00013698,2]
[353852284,1740094239082,-1158.92,0.00013698,2]
[353852285,1740094239091,-500.0,0.00013698,2]
[353852286,1740094239101,-30771.66,0.00013698,2]
[353852287,1740094239111,-500.0,0.00013698,2]
[353852288,1740094239120,-974.73,0.00013698,2]
[353852289,1740094239130,-1439.4,0.00013698,2]
[353852290,1740094239139,-1913.0,0.00013698,2]
[353852291,1740094239149,-500.0,0.00013698,2]
[353852292,1740094239159,-1049.41,0.00013698,2]
[353852293,1740094239168,-1207.72,0.00013698,2]
[353852294,1740094239178,-500.0,0.00013698,2]
[353852295,1740094239188,-500.0,0.00013698,2]
[353852296,1740094239197,-2590.22,0.00013698,2]
[353852297,1740094239208,-5110.22,0.00013698,2]
[353852298,1740094239217,-711.86,0.00013698,2]
[353852299,1740094239227,-500.0,0.00013698,2]
[353852300,1740094239237,-2889.63,0.00013698,2]
[353852301,1740094239247,-500.0,0.00013698,2]
[353852302,1740094239256,-1562.09,0.00013698,2]
[353852303,1740094239266,-500.0,0.00013698,2]
[353852304,1740094239276,-500.0,0.00013698,2]
[353852305,1740094239286,-636.21,0.00013698,2]
[353852306,1740094239297,-972.89,0.00013698,2]
[353852307,1740094239307,-500.0,0.00013698,2]
[353852308,1740094239316,-500.0,0.00013698,2]
[353852309,1740094239326,-500.0,0.00013698,2]
[353852310,1740094239336,-1767.08,0.00013698,2]
[353852311,1740094239345,-1528.59,0.00013698,2]
[353852312,1740094239354,-2717.67,0.00013698,2]
[353852313,1740094239364,-1560.2,0.00013698,2]
[353852314,1740094239373,-500.0,0.00013698,2]
[353852315,1740094239383,-1786.89,0.00013698,2]
[353852316,1740094239393,-500.0,0.00013698,2]
[353852317,1740094239403,-514.1,0.00013698,2]
[353852318,1740094239412,-500.0,0.00013698,2]
[353852319,1740094239422,-13706.7,0.00013698,2]
[353852320,1740094239432,-500.0,0.00013698,2]
[353852321,1740094239441,-562.02,0.00013698,2]
[353852322,1740094239451,-500.0,0.00013698,2]
[353852323,1740094239461,-1553.37,0.00013698,2]
[353852324,1740094239471,-500.0,0.00013698,2]
[353852325,1740094239481,-1393.71,0.00013698,2]
[353852326,1740094239491,-500.0,0.00013698,2]
[353852327,1740094239500,-500.0,0.00013698,2]
[353852328,1740094239510,-670.89,0.00013698,2]
[353852329,1740094239520,-500.0,0.00013698,2]
[353852331,1740094239530,-6363.56,0.00013698,2]
[353852332,1740094239539,-500.0,0.00013698,2]
[353852333,1740094239550,-500.0,0.00013698,2]
[353852334,1740094239559,-4370.44,0.00013698,2]
[353852335,1740094239569,-500.0,0.00013698,2]
[353852336,1740094239579,-500.0,0.00013698,2]
[353852337,1740094239588,-1671.71,0.00013698,2]
[353852338,1740094239598,-500.0,0.00013698,2]
[353852339,1740094239607,-2799.98,0.00013698,2]
[353852340,1740094239618,-11416.76,0.00013698,2]
[353852341,1740094239627,-1309.24,0.00013698,2]
[353852342,1740094239637,-679.78,0.00013698,2]
[353852343,1740094239646,-500.0,0.00013698,2]
[353852344,1740094239655,-164.612171,0.00013699,2]
[353852345,1740094239666,-46247.4341032,0.00013699,2]
[353852346,1740094239681,-217.37198194,0.00013699,2]
[353852347,1740094239691,-500.0,0.00013699,2]
[353852348,1740094239701,-500.0,0.00013699,2]
[353852350,1740094239710,-500.0,0.00013699,2]
[353852351,1740094239722,-500.0,0.00013699,2]
[353852353,1740094239732,-500.0,0.00013699,2]
[353852355,1740094239742,-158.6902927,0.00013699,2]
[353852357,1740094239751,-560.0,0.0001378,2]
[353852359,1740094239761,-500.0,0.0001378,2]
[353852360,1740094239771,-500.0,0.0001378,2]
[353852361,1740094239781,-500.0,0.0001378,2]
[353852362,1740094239791,-500.0,0.0001378,2]
[353852364,1740094239801,-500.0,0.0001378,2]
[353852366,1740094239811,-500.0,0.0001378,2]
[353852368,1740094239820,-500.0,0.0001378,2]
[353852370,1740094239829,-500.0,0.0001378,2]
[353852371,1740094239839,-621.58,0.0001378,2]
[353852372,1740094239849,-500.0,0.0001378,2]
[353852373,1740094239859,-780.25,0.0001378,2]
[353852374,1740094239869,-861.13,0.0001378,2]
[353852376,1740094239880,-500.0,0.0001378,2]
[353852377,1740094239889,-500.0,0.0001378,2]
[353852378,1740094239900,-500.0,0.0001378,2]
[353852379,1740094239910,-500.0,0.0001378,2]
[353852380,1740094239921,-500.0,0.0001378,2]
[353852381,1740094239931,-500.0,0.0001378,2]
[353852382,1740094239941,-500.0,0.0001378,2]
[353852383,1740094239951,-566.83,0.0001378,2]
[353852384,1740094239961,-500.0,0.0001378,2]
[353852385,1740094239970,-500.0,0.0001378,2]
[353852386,1740094239980,-500.0,0.0001378,2]
[353852387,1740094239989,-880.39,0.0001378,2]
[353852388,1740094239999,-500.0,0.0001378,2]
[353852389,1740094240008,-650.81,0.0001378,2]
[353852391,1740094240018,-500.0,0.0001378,2]
[353852393,1740094240027,-500.0,0.0001378,2]
[353852395,1740094240037,-646.72,0.0001378,2]
[353852396,1740094240046,-500.0,0.0001378,2]
[353852397,1740094240056,-500.0,0.0001378,2]
[353852398,1740094240065,-500.0,0.0001378,2]
[353852399,1740094240076,-500.0,0.0001378,2]
[353852400,1740094240085,-224.09737267,0.0001378,2]
[353852401,1740094240095,-500.0,0.0001378,2]
[353852402,1740094240104,-500.0,0.0001378,2]
[353852403,1740094240113,-429.67719466,0.0001378,2]
[353852404,1740094240123,-752.93,0.0001378,2]
[353852407,1740094240270,-500.0,0.0001378,2]
[353852408,1740094240280,-500.0,0.0001378,2]
[353852409,1740094240290,-950.61,0.0001378,2]
[353852410,1740094240300,-500.0,0.0001378,2]
[353852411,1740094240309,-2211.13,0.0001378,2]
[353852412,1740094240319,-921.92,0.0001378,2]
[353852413,1740094240329,-1000.0,0.0001378,2]
[353852414,1740094240339,-500.0,0.0001378,2]
[353852415,1740094240349,-1471.46,0.0001378,2]
[353852416,1740094240358,-500.0,0.0001378,2]
[353852417,1740094240368,-1158.92,0.0001378,2]
[353852418,1740094240377,-500.0,0.0001378,2]
[353852419,1740094240385,-30771.66,0.0001378,2]
[353852420,1740094240395,-500.0,0.0001378,2]
[353852421,1740094240405,-974.73,0.0001378,2]
[353852422,1740094240415,-1439.4,0.0001378,2]
[353852423,1740094240426,-1913.0,0.0001378,2]
[353852424,1740094240436,-500.0,0.0001378,2]
[353852425,1740094240445,-1049.41,0.0001378,2]
[353852426,1740094240454,-1207.72,0.0001378,2]
[353852427,1740094240464,-500.0,0.0001378,2]
[353852428,1740094240474,-500.0,0.0001378,2]
[353852429,1740094240483,-2590.22,0.0001378,2]
[353852430,1740094240493,-5110.22,0.0001378,2]
[353852431,1740094240503,-711.86,0.0001378,2]
[353852432,1740094240512,-500.0,0.0001378,2]
[353852433,1740094240521,-2889.63,0.0001378,2]
[353852434,1740094240531,-500.0,0.0001378,2]
[353852435,1740094240541,-1562.09,0.0001378,2]
[353852436,1740094240552,-500.0,0.0001378,2]
[353852437,1740094240561,-500.0,0.0001378,2]
[353852438,1740094240572,-636.21,0.0001378,2]
[353852439,1740094240582,-972.89,0.0001378,2]
[353852440,1740094240592,-500.0,0.0001378,2]
[353852441,1740094240601,-500.0,0.0001378,2]
[353852442,1740094240611,-500.0,0.0001378,2]
[353852443,1740094240621,-1767.08,0.0001378,2]
[353852444,1740094240632,-1528.59,0.0001378,2]
[353852445,1740094240642,-2717.67,0.0001378,2]
[353852446,1740094240651,-1560.2,0.0001378,2]
[353852447,1740094240661,-1786.89,0.0001378,2]
[353852448,1740094240674,-500.0,0.0001378,2]
[353852449,1740094240683,-500.0,0.0001378,2]
[353852450,1740094240692,-514.1,0.0001378,2]
[353852451,1740094240701,-500.0,0.0001378,2]
[353852452,1740094240711,-13706.7,0.0001378,2]
[353852453,1740094240721,-562.02,0.0001378,2]
[353852454,1740094240731,-500.0,0.0001378,2]
[353852455,1740094240740,-1553.37,0.0001378,2]
[353852456,1740094240750,-500.0,0.0001378,2]
[353852457,1740094240760,-1393.71,0.0001378,2]
[353852458,1740094240770,-500.0,0.0001378,2]
[353852459,1740094240780,-500.0,0.0001378,2]
[353852460,1740094240790,-670.89,0.0001378,2]
[353852461,1740094240799,-500.0,0.0001378,2]
[353852462,1740094240809,-6363.56,0.0001378,2]
[353852463,1740094240819,-500.0,0.0001378,2]
[353852464,1740094240828,-4370.44,0.0001378,2]
[353852465,1740094240838,-500.0,0.0001378,2]
[353852466,1740094240848,-500.0,0.0001378,2]
[353852467,1740094240858,-1671.71,0.0001378,2]
[353852468,1740094240868,-500.0,0.0001378,2]
[353852469,1740094240877,-2799.98,0.0001378,2]
[353852470,1740094240887,-11416.76,0.0001378,2]
[353852471,1740094240896,-1309.24,0.0001378,2]
[353852472,1740094240906,-679.78,0.0001378,2]
[353852473,1740094240915,-500.0,0.0001378,2]
[353852474,1740094240925,-580.43070982,0.00013862,2]
[353852475,1740094240935,-500.0,0.00013863,2]
[353852476,1740094240945,-500.0,0.00013863,2]
[353852477,1740094240955,-204.22984902,0.00013863,2]
[353852478,1740094240964,-500.0,0.00013863,2]
[353852479,1740094240974,-500.0,0.00013863,2]
[353852480,1740094240984,-500.0,0.00013863,2]
[353852481,1740094240993,-500.0,0.00013863,2]
[353852482,1740094241002,-500.0,0.00013863,2]
[353852483,1740094241012,-621.58,0.00013863,2]
[353852484,1740094241021,-500.0,0.00013863,2]
[353852485,1740094241031,-780.25,0.00013863,2]
[353852486,1740094241040,-861.13,0.00013863,2]
[353852487,1740094241050,-500.0,0.00013863,2]
[353852488,1740094241060,-500.0,0.00013863,2]
[353852489,1740094241070,-500.0,0.00013863,2]
[353852490,1740094241079,-500.0,0.00013863,2]
[353852491,1740094241088,-500.0,0.00013863,2]
[353852492,1740094241098,-500.0,0.00013863,2]
[353852493,1740094241107,-500.0,0.00013863,2]
[353852494,1740094241117,-566.83,0.00013863,2]
[353852495,1740094241127,-500.0,0.00013863,2]
[353852496,1740094241136,-500.0,0.00013863,2]
[353852497,1740094241146,-500.0,0.00013863,2]
[353852498,1740094241155,-880.39,0.00013863,2]
[353852499,1740094241165,-500.0,0.00013863,2]
[353852500,1740094241174,-650.81,0.00013863,2]
[353852501,1740094241184,-500.0,0.00013863,2]
[353852502,1740094241194,-500.0,0.00013863,2]
[353852503,1740094241204,-646.72,0.00013863,2]
[353852504,1740094241213,-500.0,0.00013863,2]
[353852505,1740094241223,-500.0,0.00013863,2]
[353852506,1740094241232,-500.0,0.00013863,2]
[353852507,1740094241242,-500.0,0.00013863,2]
[353852508,1740094241252,-500.0,0.00013863,2]
[353852509,1740094241261,-500.0,0.00013863,2]
[353852510,1740094241271,-752.93,0.00013863,2]
[353852511,1740094241281,-500.0,0.00013863,2]
[353852512,1740094241290,-500.0,0.00013863,2]
[353852513,1740094241300,-950.61,0.00013863,2]
[353852514,1740094241309,-500.0,0.00013863,2]
[353852515,1740094241319,-2211.13,0.00013863,2]
[353852516,1740094241330,-921.92,0.00013863,2]
[353852517,1740094241339,-1000.0,0.00013863,2]
[353852518,1740094241350,-1471.46,0.00013863,2]
[353852519,1740094241360,-500.0,0.00013863,2]
[353852520,1740094241370,-1158.92,0.00013863,2]
[353852521,1740094241379,-500.0,0.00013863,2]
[353852522,1740094241389,-30771.66,0.00013863,2]
[353852523,1740094241399,-500.0,0.00013863,2]
[353852524,1740094241409,-974.73,0.00013863,2]
[353852525,1740094241419,-1439.4,0.00013863,2]
[353852526,1740094241428,-1913.0,0.00013863,2]
[353852527,1740094241437,-500.0,0.00013863,2]
[353852528,1740094241447,-1049.41,0.00013863,2]
[353852529,1740094241456,-1207.72,0.00013863,2]
[353852530,1740094241466,-500.0,0.00013863,2]
[353852531,1740094241476,-500.0,0.00013863,2]
[353852532,1740094241485,-2590.22,0.00013863,2]
[353852533,1740094241495,-5110.22,0.00013863,2]
[353852534,1740094241505,-711.86,0.00013863,2]
[353852535,1740094241514,-500.0,0.00013863,2]
[353852536,1740094241524,-2889.63,0.00013863,2]
[353852537,1740094241533,-500.0,0.00013863,2]
[353852538,1740094241543,-1562.09,0.00013863,2]
[353852539,1740094241553,-500.0,0.00013863,2]
[353852540,1740094241565,-500.0,0.00013863,2]
[353852541,1740094241574,-636.21,0.00013863,2]
[353852542,1740094241584,-972.89,0.00013863,2]
[353852543,1740094241594,-500.0,0.00013863,2]
[353852544,1740094241603,-500.0,0.00013863,2]
[353852545,1740094241613,-500.0,0.00013863,2]
[353852546,1740094241623,-1767.08,0.00013863,2]
[353852547,1740094241633,-1528.59,0.00013863,2]
[353852548,1740094241644,-2717.67,0.00013863,2]
[353852549,1740094241654,-1560.2,0.00013863,2]
[353852550,1740094241663,-1786.89,0.00013863,2]
[353852551,1740094241677,-500.0,0.00013863,2]
[353852552,1740094241687,-500.0,0.00013863,2]
[353852553,1740094241697,-514.1,0.00013863,2]
[353852554,1740094241706,-500.0,0.00013863,2]
[353852555,1740094241718,-13706.7,0.00013863,2]